[Event "57th Biel Festival ATO 2024"]
[Site "Biel"]
[Date "2024.07.25"]
[Round "9.11"]
[White "Nergard, Ole-Kristian"]
[Black "Bangerter, Daria"]
[Result "0-1"]
[ECO "A37"]
[WhiteElo "1830"]
[BlackElo "1931"]
[Annotator "RC"]
[PlyCount "105"]
[EventDate "2024.07.03"]
[EventType "swiss"]
[EventCountry "SUI"]
[SourceTitle "playchess.com"]
[Source "ChessBase"]
[SourceQuality "1"]
[TimeControl "40/5400+30:1800+30"]

1. c4 {[%emt 0:00:14]} c5 {[%emt 0:00:14]} 2. g3 {[%emt 0:00:08]} g6 {[%emt 0:00:15]} 3. Bg2 {[%emt 0:00:14]} Bg7 {[%emt 0:00:55]} 4. Nf3 {[%emt 0:00:55]} Nc6 {[%emt 0:02:01]} 5. O-O {[%emt 0:03:46]} d6 {[%emt 0:01:52]} 6. Nc3 {[%emt 0:00:43]} e6 {[%emt 0:01:09]} 7. e3 {[%emt 0:01:35]} Nge7 {[%emt 0:02:21]} 8. d4 {[%emt 0:00:24]} O-O {[%emt 0:01:11]} 9. d5 {[%emt 0:04:07]} Na5 {[%emt 0:07:10]} 10. Nd2 {[%emt 0:05:13]} Rb8 {[%emt 0:07:26]} 11. e4 {[%emt 0:07:29]} exd5 {[%emt 0:06:51]} 12. cxd5 {[%emt 0:02:35]} b5 {[%emt 0:07:03]} 13. Qc2 {[%emt 0:00:53]} Ba6 {[%emt 0:03:37]} 14. Re1 {[%emt 0:00:31]} Re8 {[%emt 0:05:14]} 15. Nf3 {[%emt 0:05:36]} b4 {[%emt 0:04:09]} 16. Nd1 {[%emt 0:01:41]} c4 {[%emt 0:08:52]} 17. Be3 {[%emt 0:03:10]} Qd7 {[%emt 0:06:15]} 18. Qd2 {[%emt 0:08:26]} Rec8 {[%emt 0:07:50]} 19. Bd4 {[%emt 0:04:58]} c3 {[%emt 0:05:04]} 20. bxc3 {[%emt 0:02:16]} b3 {[%emt 0:03:05]} 21. Ng5 {[%emt 0:13:43]} h6 {[%emt 0:05:34]} 22. Bh3 {[%emt 0:02:33]} Nc4 {[%emt 0:05:43]} 23. Qd3 {[%emt 0:04:25]} Qa4 {[%emt 0:01:58]} 24. Bxc8 {[%emt 0:05:15]} Rxc8 {[%emt 0:01:01]} 25. Bxg7 {[%emt 0:03:25]} Kxg7 {[%emt 0:01:22]} 26. Qd4+ {[%emt 0:00:40]} Kg8 {[%emt 0:00:44]} 27. Qxa7 {[%emt 0:05:12]} b2 {[%emt 0:02:24]} 28. Rb1 {[%emt 0:02:55]} Qxa2 {[%emt 0:01:35]} 29. Nxb2 {[%emt 0:01:49]} Nxb2 {[%emt 0:00:37]} 30. Qxe7 {[%emt 0:07:04]} hxg5 {[%emt 0:00:19]} 31. Qxd6 {[%emt 0:00:28]} Nd3 {[%emt 0:00:42]} 32. Rf1 {[%emt 0:00:48]} Nxf2 {[%emt 0:00:40]} 33. Ra1 {[%emt 0:02:47]} Nh3+ {[%emt 0:00:09]} 34. Kh1 {[%emt 0:00:18]} Qc2 {[%emt 0:01:24]} 35. Qf6 {[%emt 0:00:32]} Qe2 {[%emt 0:00:31]} 36. Qf4 {[%emt 0:00:39]} Qxe4+ {[%emt 0:00:24]} 37. Qf3 {[%emt 0:00:30]} Bxf1 {[%emt 0:00:30]} 38. Rxf1 {[%emt 0:00:57]} Qxf3+ {[%emt 0:00:23]} 39. Rxf3 {[%emt 0:00:08]} g4 {[%emt 0:00:24]} 40. Re3 {[%emt 0:00:39]} Ra8 {[%emt 0:00:38]} 41. Re1 {[%emt 0:30:30]} Rd8 {[%emt 0:30:44]} 42. c4 {[%emt 0:00:05]} Nf2+ {[%emt 0:00:00]} 43. Kg2 {[%emt 0:00:00]} Nd3 {[%emt 0:00:00]} 44. Re4 {[%emt 0:00:00]} f5 {[%emt 0:00:00]} 45. Re6 {[%emt 0:00:00]} Kf7 {[%emt 0:00:00]} 46. Kf1 {[%emt 0:00:00]} Rc8 {[%emt 0:00:00]} 47. Re3 {[%emt 0:00:00]} Nb2 {[%emt 0:00:00]} 48. Rb3 {[%emt 0:00:00]} Nxc4 {[%emt 0:00:00]} 49. Ke2 {[%emt 0:00:00]} Nd6 {[%emt 0:00:00]} 50. Kd3 {[%emt 0:00:00]} Rc5 {[%emt 0:00:00]} 51. Kd4 {[%emt 0:00:00]} Rc4+ {[%emt 0:00:00]} 52. Ke5 {[%emt 0:00:00]} Ke7 {[%emt 0:00:00]} 53. Re3 {[%emt 0:00:00]} 0-1

[Event "57th Biel Festival ATO 2024"]
[Site "Biel"]
[Date "2024.07.25"]
[Round "9.12"]
[White "Schaer, Bryan"]
[Black "Ribera Caro, Joan"]
[Result "1-0"]
[ECO "B22"]
[WhiteElo "1803"]
[BlackElo "1920"]
[Annotator "RC"]
[PlyCount "132"]
[EventDate "2024.07.03"]
[EventType "swiss"]
[EventCountry "SUI"]
[SourceTitle "playchess.com"]
[Source "ChessBase"]
[SourceQuality "1"]
[TimeControl "40/5400+30:1800+30"]

1. e4 {[%emt 0:07:07]} c5 {[%emt 0:00:18]} 2. c3 {[%emt 0:00:11]} Nf6 {[%emt 0:00:17]} 3. e5 {[%emt 0:00:06]} Nd5 {[%emt 0:00:11]} 4. Nf3 {[%emt 0:00:16]} Nc6 {[%emt 0:00:51]} 5. d4 {[%emt 0:00:10]} cxd4 {[%emt 0:00:13]} 6. cxd4 {[%emt 0:00:56]} d6 {[%emt 0:00:15]} 7. Bc4 {[%emt 0:01:44]} Nb6 {[%emt 0:00:16]} 8. Bb5 {[%emt 0:03:01]} dxe5 {[%emt 0:00:26]} 9. Nxe5 {[%emt 0:00:17]} Bd7 {[%emt 0:00:19]} 10. Nxd7 {[%emt 0:00:11]} Qxd7 {[%emt 0:00:11]} 11. O-O {[%emt 0:05:45]} e6 {[%emt 0:05:00]} 12. Be3 {[%emt 0:01:10]} Be7 {[%emt 0:05:12]} 13. Nc3 {[%emt 0:02:18]} a6 {[%emt 0:00:39]} 14. Bd3 {[%emt 0:01:04]} O-O {[%emt 0:07:21]} 15. Qg4 {[%emt 0:09:25]} Rfd8 {[%emt 0:04:42]} 16. Rad1 {[%emt 0:13:16]} Nd5 {[%emt 0:11:54]} 17. Bh6 {[%emt 0:01:49]} g6 {[%emt 0:01:27]} 18. Bb1 {[%emt 0:08:46]} Nf6 {[%emt 0:13:51]} 19. Qh4 {[%emt 0:08:11]} Nxd4 {[%emt 0:05:47]} 20. Bg5 {[%emt 0:00:59]} Kg7 {[%emt 0:10:52]} 21. Qh6+ {[%emt 0:02:52]} Kh8 {[%emt 0:00:51]} 22. Qh4 {[%emt 0:01:04]} Ng8 {[%emt 0:02:48]} 23. Bxe7 {[%emt 0:05:37]} Nxe7 {[%emt 0:01:08]} 24. Qf6+ {[%emt 0:00:59]} Kg8 {[%emt 0:00:11]} 25. Rxd4 {[%emt 0:00:42]} Qxd4 {[%emt 0:00:10]} 26. Qxe7 {[%emt 0:00:07]} Rd7 {[%emt 0:01:41]} 27. Qg5 {[%emt 0:02:24]} Rad8 {[%emt 0:04:16]} 28. h4 {[%emt 0:01:29]} Qd2 {[%emt 0:04:05]} 29. Ne4 {[%emt 0:02:16]} Qxg5 {[%emt 0:01:32]} 30. hxg5 {[%emt 0:00:44]} Kg7 {[%emt 0:02:52]} 31. f3 {[%emt 0:04:14]} h6 {[%emt 0:02:33]} 32. gxh6+ {[%emt 0:00:34]} Kxh6 {[%emt 0:00:17]} 33. Kf2 {[%emt 0:00:02]} Kg7 {[%emt 0:01:08]} 34. Ke3 {[%emt 0:02:16]} Rd1 {[%emt 0:03:06]} 35. Rxd1 {[%emt 0:00:27]} Rxd1 {[%emt 0:00:16]} 36. Bd3 {[%emt 0:01:30]} Ra1 {[%emt 0:05:30]} 37. Nc3 {[%emt 0:04:05]} Rg1 {[%emt 0:00:57]} 38. Kf2 {[%emt 0:01:00]} Rh1 {[%emt 0:00:24]} 39. Be4 {[%emt 0:01:04]} b6 {[%emt 0:01:25]} 40. Bd3 {[%emt 0:00:22]} b5 {[%emt 0:01:38]} 41. a3 {[%emt 0:35:38]} f5 {[%emt 0:04:45]} 42. Bf1 {[%emt 0:00:00]} Rh8 {[%emt 0:02:03]} 43. Na2 {[%emt 0:00:00]} Rc8 {[%emt 0:02:48]} 44. Bd3 {[%emt 0:00:00]} Rd8 {[%emt 0:02:36]} 45. Ke3 {[%emt 0:00:00]} e5 {[%emt 0:02:09]} 46. Nb4 {[%emt 0:00:00]} Rd6 {[%emt 0:00:35]} 47. Be2 {[%emt 0:00:00]} Kf6 {[%emt 0:04:09]} 48. Nd3 {[%emt 0:00:00]} a5 {[%emt 0:08:45]} 49. Nc5 {[%emt 0:00:00]} b4 {[%emt 0:02:40]} 50. a4 {[%emt 0:00:00]} Rd5 {[%emt 0:04:25]} 51. Nb3 {[%emt 0:00:00]} f4+ {[%emt 0:01:42]} 52. Kf2 {[%emt 0:00:08]} Rd7 {[%emt 0:01:05]} 53. Nc5 {[%emt 0:01:09]} Rc7 {[%emt 0:01:08]} 54. Ne4+ {[%emt 0:00:54]} Ke7 {[%emt 0:00:51]} 55. b3 {[%emt 0:00:41]} Rc1 {[%emt 0:00:32]} 56. Bc4 {[%emt 0:00:15]} Rc2+ {[%emt 0:00:16]} 57. Kg1 {[%emt 0:00:40]} Rc1+ {[%emt 0:00:44]} 58. Kh2 {[%emt 0:00:23]} Rc2 {[%emt 0:00:42]} 59. Nc5 {[%emt 0:02:15]} Rc1 {[%emt 0:00:43]} 60. Nb7 {[%emt 0:00:39]} Rxc4 {[%emt 0:00:23]} 61. Nxa5 {[%emt 0:03:00]} Rc3 {[%emt 0:00:30]} 62. Kg1 {[%emt 0:00:17]} Kd7 {[%emt 0:00:36]} 63. Kf1 {[%emt 0:00:28]} Kc7 {[%emt 0:00:29]} 64. Ke1 {[%emt 0:00:23]} Rc2 {[%emt 0:00:31]} 65. Nc4 {[%emt 0:00:37]} Rxg2 {[%emt 0:00:28]} 66. Nxe5 {[%emt 0:00:12]} Kb6 {[%emt 0:01:05]} 1-0

[Event "57th Biel Festival ATO 2024"]
[Site "Biel"]
[Date "2024.07.25"]
[Round "9.13"]
[White "Aegerter, Fabrice"]
[Black "Haas, Anthony"]
[Result "0-1"]
[ECO "A45"]
[WhiteElo "1917"]
[BlackElo "1824"]
[Annotator "RC"]
[PlyCount "72"]
[EventDate "2024.07.03"]
[EventType "swiss"]
[EventCountry "SUI"]
[SourceTitle "playchess.com"]
[Source "ChessBase"]
[SourceQuality "1"]
[TimeControl "40/5400+30:1800+30"]

1. d4 {[%emt 0:00:03]} Nf6 {[%emt 0:00:07]} 2. Bf4 {[%emt 0:00:15]} c6 {[%emt 0:00:06]} 3. c3 {[%emt 0:04:05]} Nh5 {[%emt 0:05:23]} 4. Bc1 {[%emt 0:03:09]} g6 {[%emt 0:03:04]} 5. e4 {[%emt 0:03:45]} d6 {[%emt 0:03:53]} 6. g4 {[%emt 0:06:18]} Nf6 {[%emt 0:07:23]} 7. g5 {[%emt 0:01:52]} Nfd7 {[%emt 0:01:50]} 8. Bc4 {[%emt 0:04:47]} d5 {[%emt 0:16:45]} 9. Bd3 {[%emt 0:16:12]} dxe4 {[%emt 0:09:00]} 10. Bxe4 {[%emt 0:03:32]} Bg7 {[%emt 0:01:49]} 11. f4 {[%emt 0:03:30]} Nb6 {[%emt 0:03:28]} 12. Nf3 {[%emt 0:04:35]} O-O {[%emt 0:04:47]} 13. Be3 {[%emt 0:06:29]} Nd5 {[%emt 0:02:45]} 14. Qe2 {[%emt 0:01:22]} Bg4 {[%emt 0:03:16]} 15. Nbd2 {[%emt 0:02:25]} Qc7 {[%emt 0:05:09]} 16. Qf2 {[%emt 0:08:32]} Nxf4 {[%emt 0:07:55]} 17. Ne5 {[%emt 0:02:45]} Bxe5 {[%emt 0:01:54]} 18. dxe5 {[%emt 0:00:17]} Nd5 {[%emt 0:01:44]} 19. Bd4 {[%emt 0:05:16]} Nd7 {[%emt 0:03:46]} 20. Qg2 {[%emt 0:04:26]} Be6 {[%emt 0:02:11]} 21. h4 {[%emt 0:05:39]} Nf4 {[%emt 0:00:57]} 22. Qh2 {[%emt 0:02:20]} Nh5 {[%emt 0:02:36]} 23. c4 {[%emt 0:05:18]} Rad8 {[%emt 0:07:41]} 24. Bc3 {[%emt 0:01:48]} Nc5 {[%emt 0:00:38]} 25. Bf3 {[%emt 0:02:22]} Nd3+ {[%emt 0:00:13]} 26. Kd1 {[%emt 0:00:17]} Ndf4 {[%emt 0:01:20]} 27. Kc2 {[%emt 0:00:27]} Qd7 {[%emt 0:02:01]} 28. Be4 {[%emt 0:01:16]} Bf5 {[%emt 0:00:25]} 29. Rhe1 {[%emt 0:00:28]} Bxe4+ {[%emt 0:00:25]} 30. Rxe4 {[%emt 0:00:33]} Qd3+ {[%emt 0:00:30]} 31. Kb3 {[%emt 0:00:13]} Ne6 {[%emt 0:00:33]} 32. Qf2 {[%emt 0:00:40]} b6 {[%emt 0:00:37]} 33. Re3 {[%emt 0:00:47]} Nc5+ {[%emt 0:00:19]} 34. Ka3 {[%emt 0:00:08]} Qc2 {[%emt 0:01:05]} 35. b4 {[%emt 0:01:22]} Nd3 {[%emt 0:01:01]} 36. Rxd3 {[%emt 0:00:35]} Rxd3 {[%emt 0:00:15]} 0-1

[Event "57th Biel Festival ATO 2024"]
[Site "Biel"]
[Date "2024.07.25"]
[Round "9.14"]
[White "Kim, Donghan"]
[Black "Leuenberger, Urs"]
[Result "1-0"]
[ECO "B76"]
[WhiteElo "1746"]
[BlackElo "1903"]
[Annotator "RC"]
[PlyCount "39"]
[EventDate "2024.07.03"]
[EventType "swiss"]
[EventCountry "SUI"]
[SourceTitle "playchess.com"]
[Source "ChessBase"]
[SourceQuality "1"]
[TimeControl "40/5400+30:1800+30"]

1. e4 {[%emt 0:00:07]} c5 {[%emt 0:00:24]} 2. Nf3 {[%emt 0:00:17]} d6 {[%emt 0:00:16]} 3. d4 {[%emt 0:00:16]} cxd4 {[%emt 0:00:15]} 4. Nxd4 {[%emt 0:00:22]} Nf6 {[%emt 0:00:17]} 5. Nc3 {[%emt 0:01:01]} g6 {[%emt 0:00:32]} 6. Be3 {[%emt 0:01:03]} Bg7 {[%emt 0:00:23]} 7. f3 {[%emt 0:00:21]} Nc6 {[%emt 0:00:39]} 8. Qd2 {[%emt 0:00:22]} O-O {[%emt 0:00:22]} 9. g4 {[%emt 0:01:18]} Be6 {[%emt 0:01:31]} 10. O-O-O {[%emt 0:06:16]} Na5 {[%emt 0:03:27]} 11. Bh6 {[%emt 0:02:53]} Rc8 {[%emt 0:03:15]} 12. Bxg7 {[%emt 0:01:50]} Kxg7 {[%emt 0:00:14]} 13. h4 {[%emt 0:02:33]} h5 {[%emt 0:01:12]} 14. gxh5 {[%emt 0:07:13]} Nxh5 {[%emt 0:00:39]} 15. Rg1 {[%emt 0:06:06]} Qd7 {[%emt 0:08:32]} 16. Bb5 {[%emt 0:04:27]} Nc6 {[%emt 0:02:03]} 17. Qg5 {[%emt 0:03:25]} Kh7 {[%emt 0:07:24]} 18. f4 {[%emt 0:03:20]} a6 {[%emt 0:04:18]} 19. f5 {[%emt 0:02:51]} axb5 {[%emt 0:02:06]} 20. fxg6+ {[%emt 0:00:31]} 1-0

[Event "57th Biel Festival ATO 2024"]
[Site "Biel"]
[Date "2024.07.25"]
[Round "9.15"]
[White "Cardoso Rodrigues, Michael"]
[Black "Wenger, Arejou"]
[Result "0-1"]
[ECO "B22"]
[WhiteElo "1796"]
[BlackElo "1875"]
[Annotator "NA RC"]
[PlyCount "100"]
[EventDate "2024.07.03"]
[EventType "swiss"]
[EventCountry "SUI"]
[SourceTitle "playchess.com"]
[Source "ChessBase"]
[SourceQuality "1"]
[TimeControl "40/5400+30:1800+30"]

1. e4 {[%emt 0:00:05]} c5 {[%emt 0:00:04]} 2. d4 {[%emt 0:00:06]} cxd4 {[%emt 0:00:04]} 3. c3 {[%emt 0:00:10]} Nf6 {[%emt 0:00:04]} 4. e5 {[%emt 0:00:06]} Nd5 {[%emt 0:00:04]} 5. Nf3 {[%emt 0:00:14]} Nc6 {[%emt 0:00:28]} 6. cxd4 {[%emt 0:05:33]} e6 {[%emt 0:01:16]} 7. Bc4 {[%emt 0:01:35]} d6 {[%emt 0:01:09]} 8. O-O {[%emt 0:02:15]} Be7 {[%emt 0:02:54]} 9. Nbd2 {[%emt 0:04:41]} O-O {[%emt 0:01:11]} 10. Ne4 {[%emt 0:00:23]} dxe5 {[%emt 0:00:30]} 11. dxe5 {[%emt 0:00:45]} Qc7 {[%emt 0:01:19]} 12. Bxd5 {[%emt 0:12:51]} exd5 {[%emt 0:01:14]} 13. Qxd5 {[%emt 0:03:46]} Be6 {[%emt 0:01:05]} 14. Qb5 {[%emt 0:06:11]} a6 {[%emt 0:01:07]} 15. Qe2 {[%emt 0:00:41]} Nxe5 {[%emt 0:04:15]} 16. Bf4 {[%emt 0:05:26]} Qc4 {[%emt 0:03:32]} 17. Qxc4 {[%emt 0:02:59]} Nxf3+ {[%emt 0:00:35]} 18. gxf3 {[%emt 0:00:26]} Bxc4 {[%emt 0:00:06]} 19. Rfc1 {[%emt 0:01:32]} Bd5 {[%emt 0:10:22]} 20. Rc7 {[%emt 0:02:19]} Bd8 {[%emt 0:04:33]} 21. Rd7 {[%emt 0:04:25]} Bc6 {[%emt 0:01:15]} 22. Rd3 {[%emt 0:07:13]} Re8 {[%emt 0:07:28]} 23. Rad1 {[%emt 0:01:48]} Bb6 {[%emt 0:05:42]} 24. Be3 {[%emt 0:01:38]} Bc7 {[%emt 0:06:28]} 25. Kg2 {[%emt 0:03:38]} Rxe4 {[%emt 0:06:01]} 26. fxe4 {[%emt 0:00:03]} Bxe4+ {[%emt 0:00:09]} 27. f3 {[%emt 0:02:56]} Bxd3 {[%emt 0:00:10]} 28. Rxd3 {[%emt 0:00:08]} Rd8 {[%emt 0:06:11]} 29. Rc3 {[%emt 0:03:01]} Be5 {[%emt 0:02:35]} 30. Rc2 {[%emt 0:00:46]} f5 {[%emt 0:02:46]} 31. Bb6 {[%emt 0:01:34]} Rd5 {[%emt 0:03:18]} 32. b3 {[%emt 0:01:11]} Bf4 {[%emt 0:01:47]} 33. h3 {[%emt 0:02:21]} Kf7 {[%emt 0:02:00]} 34. Bc7 {[%emt 0:00:41]} Rd2+ {[%emt 0:02:26]} 35. Rxd2 {[%emt 0:00:02]} Bxd2 {[%emt 0:00:06]} 36. Kg3 {[%emt 0:01:11]} g5 {[%emt 0:03:09]} 37. Bb8 {[%emt 0:05:15]} Ke6 {[%emt 0:02:08]} 38. Kf2 {[%emt 0:00:47]} Kd5 {[%emt 0:01:39]} 39. Ke2 {[%emt 0:01:41]} Bc1 {[%emt 0:03:15]} 40. Kd3 {[%emt 0:02:11]} h5 {[%emt 0:01:25]} 41. Bc7 {[%emt 0:32:18]} g4 {[%emt 0:32:46]} 42. fxg4 {[%emt 0:00:24]} hxg4 {[%emt 0:00:55]} 43. hxg4 {[%emt 0:00:03]} fxg4 {[%emt 0:00:08]} 44. Bh2 {[%emt 0:06:40]} Bb2 {[%emt 0:02:04]} 45. Bg1 {[%emt 0:03:08]} g3 {[%emt 0:01:27]} 46. Be3 {[%emt 0:01:15]} g2 {[%emt 0:01:06]} 47. Bb6 {[%emt 0:00:49]} Ba3 {[%emt 0:00:58]} 48. Ke2 {[%emt 0:00:40]} Bc5 {[%emt 0:00:23]} 49. Bxc5 {[%emt 0:00:13]} Kxc5 {[%emt 0:00:03]} 50. Kf2 {[%emt 0:00:08]} Kb4 {[%emt 0:00:12]} 0-1

[Event "57th Biel Festival ATO 2024"]
[Site "Biel"]
[Date "2024.07.25"]
[Round "9.16"]
[White "Keymer, Cecilia"]
[Black "Paholok, Igor"]
[Result "1-0"]
[ECO "A40"]
[WhiteElo "1865"]
[BlackElo "1801"]
[Annotator "NA RC"]
[PlyCount "69"]
[EventDate "2024.07.03"]
[EventType "swiss"]
[EventCountry "SUI"]
[SourceTitle "playchess.com"]
[Source "ChessBase"]
[SourceQuality "1"]
[TimeControl "40/5400+30:1800+30"]

1. d4 {[%emt 0:00:04]} g6 {[%emt 0:12:15]} 2. c4 {[%emt 0:00:20]} Bg7 {[%emt 0:00:08]} 3. Nc3 {[%emt 0:00:14]} c5 {[%emt 0:00:14]} 4. d5 {[%emt 0:00:15]} Bxc3+ {[%emt 0:00:12]} 5. bxc3 {[%emt 0:00:03]} f5 {[%emt 0:00:12]} 6. e4 {[%emt 0:00:21]} fxe4 {[%emt 0:00:23]} 7. f3 {[%emt 0:00:15]} e6 {[%emt 0:05:42]} 8. Nh3 {[%emt 0:04:27]} Qh4+ {[%emt 0:09:39]} 9. Nf2 {[%emt 0:02:33]} exf3 {[%emt 0:13:59]} 10. Qxf3 {[%emt 0:08:39]} Qe7 {[%emt 0:01:51]} 11. Be2 {[%emt 0:03:29]} d6 {[%emt 0:28:37]} 12. O-O {[%emt 0:41:55]} e5 {[%emt 0:14:28]} 13. Bd3 {[%emt 0:00:30]} Na6 {[%emt 0:00:30]} 14. Ng4 {[%emt 0:00:30]} Bxg4 {[%emt 0:00:30]} 15. Qxg4 {[%emt 0:00:30]} Nf6 {[%emt 0:00:30]} 16. Bxg6+ {[%emt 0:00:30]} hxg6 {[%emt 0:00:30]} 17. Qxg6+ {[%emt 0:00:30]} Kd7 {[%emt 0:00:30]} 18. Rxf6 {[%emt 0:00:30]} Raf8 {[%emt 0:00:30]} 19. Bg5 {[%emt 0:00:30]} Rhg8 {[%emt 0:00:30]} 20. Qf5+ {[%emt 0:00:30]} Kc7 {[%emt 0:00:30]} 21. Rf1 {[%emt 0:00:30]} Rxf6 {[%emt 0:00:30]} 22. Bxf6 {[%emt 0:02:55]} Qd7 {[%emt 0:01:55]} 23. Qxd7+ {[%emt 0:03:43]} Kxd7 {[%emt 0:03:46]} 24. h4 {[%emt 0:00:31]} Nc7 {[%emt 0:00:30]} 25. h5 {[%emt 0:03:52]} Ne8 {[%emt 0:00:45]} 26. h6 {[%emt 0:02:32]} Nxf6 {[%emt 0:03:29]} 27. Rxf6 {[%emt 0:00:04]} Rh8 {[%emt 0:00:39]} 28. Kf2 {[%emt 0:01:52]} a6 {[%emt 0:00:09]} 29. g4 {[%emt 0:01:58]} b5 {[%emt 0:00:15]} 30. cxb5 {[%emt 0:01:59]} axb5 {[%emt 0:00:02]} 31. g5 {[%emt 0:01:39]} Ke7 {[%emt 0:00:49]} 32. Re6+ {[%emt 0:05:17]} Kd7 {[%emt 0:00:20]} 33. g6 {[%emt 0:03:33]} Rxh6 {[%emt 0:00:16]} 34. g7 {[%emt 0:00:40]} Rh2+ {[%emt 0:00:15]} 35. Kg1 {[%emt 0:01:32]} 1-0

[Event "57th Biel Festival ATO 2024"]
[Site "Biel"]
[Date "2024.07.25"]
[Round "9.17"]
[White "Pantillon, Patrick Andre"]
[Black "Bracher, Juerg"]
[Result "1-0"]
[ECO "B90"]
[WhiteElo "1782"]
[BlackElo "1864"]
[Annotator "NA RC"]
[PlyCount "75"]
[EventDate "2024.07.03"]
[EventType "swiss"]
[EventCountry "SUI"]
[SourceTitle "playchess.com"]
[Source "ChessBase"]
[SourceQuality "1"]
[TimeControl "40/5400+30:1800+30"]

1. Nc3 {[%emt 0:00:06]} c5 {[%emt 0:02:00]} 2. Nf3 {[%emt 0:02:34]} Nc6 {[%emt 0:00:00]} 3. d4 {[%emt 0:01:52]} cxd4 {[%emt 0:00:00]} 4. Nxd4 {[%emt 0:00:08]} a6 {[%emt 0:01:27]} 5. e4 {[%emt 0:06:12]} d6 {[%emt 0:06:31]} 6. Be3 {[%emt 0:06:40]} e6 {[%emt 0:01:32]} 7. Be2 {[%emt 0:04:46]} Nf6 {[%emt 0:00:51]} 8. Nxc6 {[%emt 0:05:10]} bxc6 {[%emt 0:00:05]} 9. f4 {[%emt 0:04:18]} Be7 {[%emt 0:03:03]} 10. O-O {[%emt 0:01:27]} O-O {[%emt 0:07:03]} 11. Bf3 {[%emt 0:03:40]} Rb8 {[%emt 0:00:18]} 12. b3 {[%emt 0:07:50]} Qc7 {[%emt 0:03:37]} 13. Qd2 {[%emt 0:04:24]} d5 {[%emt 0:19:28]} 14. e5 {[%emt 0:00:49]} Nd7 {[%emt 0:00:13]} 15. Na4 {[%emt 0:02:15]} c5 {[%emt 0:00:16]} 16. Qf2 {[%emt 0:01:37]} d4 {[%emt 0:05:20]} 17. Bd2 {[%emt 0:00:36]} Bb7 {[%emt 0:03:15]} 18. Bxb7 {[%emt 0:01:24]} Qxb7 {[%emt 0:02:32]} 19. Qg3 {[%emt 0:00:33]} f5 {[%emt 0:09:43]} 20. Qd3 {[%emt 0:04:14]} Nb6 {[%emt 0:03:45]} 21. Nxb6 {[%emt 0:01:06]} Qxb6 {[%emt 0:00:01]} 22. Qc4 {[%emt 0:03:52]} Kf7 {[%emt 0:01:56]} 23. a4 {[%emt 0:01:08]} Rg8 {[%emt 0:04:11]} 24. Rf3 {[%emt 0:02:59]} g6 {[%emt 0:03:04]} 25. Raf1 {[%emt 0:02:59]} Qc6 {[%emt 0:00:59]} 26. Rh3 {[%emt 0:01:54]} h5 {[%emt 0:03:02]} 27. Rff3 {[%emt 0:02:11]} Rh8 {[%emt 0:01:31]} 28. Be1 {[%emt 0:02:04]} Qe4 {[%emt 0:01:30]} 29. Kf1 {[%emt 0:02:01]} Rhd8 {[%emt 0:02:34]} 30. Bd2 {[%emt 0:15:52]} Ra8 {[%emt 0:01:34]} 31. Rfg3 {[%emt 0:00:47]} Ra7 {[%emt 0:01:20]} 32. Rxg6 {[%emt 0:04:01]} Kxg6 {[%emt 0:03:22]} 33. Qxe6+ {[%emt 0:00:12]} Kg7 {[%emt 0:01:38]} 34. Rg3+ {[%emt 0:00:14]} Bg5 {[%emt 0:01:17]} 35. Rxg5+ {[%emt 0:01:09]} Kh8 {[%emt 0:02:44]} 36. Qf6+ {[%emt 0:01:22]} Kh7 {[%emt 0:00:26]} 37. Rxh5+ {[%emt 0:00:20]} Kg8 {[%emt 0:00:03]} 38. Rh8# {[%emt 0:00:31]} 1-0

[Event "57th Biel Festival ATO 2024"]
[Site "Biel"]
[Date "2024.07.25"]
[Round "9.18"]
[White "Bachmann Daniel"]
[Black "Kuenzi, Anton"]
[Result "0-1"]
[ECO "B12"]
[WhiteElo "1713"]
[BlackElo "1862"]
[Annotator "NA RC"]
[PlyCount "108"]
[EventDate "2024.07.03"]
[EventType "swiss"]
[EventCountry "SUI"]
[SourceTitle "playchess.com"]
[Source "ChessBase"]
[SourceQuality "1"]
[TimeControl "40/5400+30:1800+30"]

1. e4 {[%emt 0:25:01]} c6 {[%emt 0:01:37]} 2. d4 {[%emt 0:00:03]} d5 {[%emt 0:00:10]} 3. f3 {[%emt 0:00:01]} dxe4 {[%emt 0:00:28]} 4. fxe4 {[%emt 0:00:34]} e5 {[%emt 0:00:30]} 5. Nf3 {[%emt 0:00:30]} Bg4 {[%emt 0:01:31]} 6. c3 {[%emt 0:00:04]} Nd7 {[%emt 0:01:06]} 7. Bc4 {[%emt 0:00:09]} Bh5 {[%emt 0:05:03]} 8. O-O {[%emt 0:05:51]} Ngf6 {[%emt 0:02:38]} 9. Bg5 {[%emt 0:07:34]} Bd6 {[%emt 0:06:39]} 10. Bxf6 {[%emt 0:06:11]} Nxf6 {[%emt 0:06:31]} 11. dxe5 {[%emt 0:03:30]} Bc5+ {[%emt 0:02:43]} 12. Kh1 {[%emt 0:01:03]} Qxd1 {[%emt 0:06:40]} 13. Rxd1 {[%emt 0:00:01]} Nxe4 {[%emt 0:00:36]} 14. Rf1 {[%emt 0:01:04]} Nf2+ {[%emt 0:00:09]} 15. Kg1 {[%emt 0:00:09]} Bxf3 {[%emt 0:00:11]} 16. b4 {[%emt 0:02:14]} Bb6 {[%emt 0:00:40]} 17. gxf3 {[%emt 0:00:59]} Ng4+ {[%emt 0:00:13]} 18. Kh1 {[%emt 0:00:34]} Ne3 {[%emt 0:00:09]} 19. Nd2 {[%emt 0:03:15]} Nxf1 {[%emt 0:00:15]} 20. Rxf1 {[%emt 0:00:11]} Bc7 {[%emt 0:02:59]} 21. f4 {[%emt 0:01:38]} Bd8 {[%emt 0:18:26]} 22. Ne4 {[%emt 0:00:30]} Be7 {[%emt 0:00:20]} 23. Nd6+ {[%emt 0:02:28]} Bxd6 {[%emt 0:00:23]} 24. exd6 {[%emt 0:00:02]} O-O-O {[%emt 0:00:45]} 25. Rd1 {[%emt 0:00:50]} Rd7 {[%emt 0:01:19]} 26. Bf1 {[%emt 0:03:36]} g6 {[%emt 0:01:03]} 27. c4 {[%emt 0:00:10]} Re8 {[%emt 0:01:37]} 28. f5 {[%emt 0:03:53]} f6 {[%emt 0:01:37]} 29. c5 {[%emt 0:04:21]} Re5 {[%emt 0:06:17]} 30. Bh3 {[%emt 0:01:23]} g5 {[%emt 0:02:29]} 31. Bf1 {[%emt 0:02:39]} Re4 {[%emt 0:08:52]} 32. a3 {[%emt 0:01:06]} Rd8 {[%emt 0:01:17]} 33. Rc1 {[%emt 0:01:04]} Rde8 {[%emt 0:01:57]} 34. Rc3 {[%emt 0:07:39]} Re3 {[%emt 0:03:31]} 35. Rc2 {[%emt 0:00:14]} R8e5 {[%emt 0:02:20]} 36. Bc4 {[%emt 0:01:18]} Rxf5 {[%emt 0:00:50]} 37. Be2 {[%emt 0:04:26]} Rfe5 {[%emt 0:00:49]} 38. Bg4+ {[%emt 0:00:22]} f5 {[%emt 0:00:13]} 39. Bh5 {[%emt 0:00:24]} g4 {[%emt 0:00:55]} 40. Kg1 {[%emt 0:02:15]} Re2 {[%emt 0:00:46]} 41. Rc4 {[%emt 0:35:18]} Ra2 {[%emt 0:30:51]} 42. Rc1 {[%emt 0:01:12]} Kd7 {[%emt 0:01:33]} 43. h3 {[%emt 0:01:25]} Ree2 {[%emt 0:01:50]} 44. hxg4 {[%emt 0:04:38]} Rg2+ {[%emt 0:00:59]} 45. Kf1 {[%emt 0:00:00]} fxg4 {[%emt 0:00:00]} 46. Rc4 {[%emt 0:00:00]} g3 {[%emt 0:00:00]} 47. Bg4+ {[%emt 0:00:00]} Kd8 {[%emt 0:00:00]} 48. Rf4 {[%emt 0:00:00]} Raf2+ {[%emt 0:00:00]} 49. Rxf2 {[%emt 0:00:00]} Rxf2+ {[%emt 0:00:00]} 50. Kg1 {[%emt 0:00:00]} Ra2 {[%emt 0:00:00]} 51. Kf1 {[%emt 0:00:00]} Rxa3 {[%emt 0:00:00]} 52. Kg2 {[%emt 0:00:00]} Rb3 {[%emt 0:00:00]} 53. Bf3 {[%emt 0:00:00]} Rxb4 {[%emt 0:00:00]} 54. Kxg3 {[%emt 0:00:00]} Rc4 {[%emt 0:00:00]} 0-1